[Event "17th Memorial Lezcano Montalvo 2025"]
[Site "Gran Canaria"]
[Date "2025.04.20"]
[Round "9.53"]
[White "Alonso Galvez, Ana Belen"]
[Black "Peraza Concepcion, Airam"]
[Result "0-1"]
[Annotator "NA"]
[ECO "C54"]
[WhiteElo "1554"]
[BlackElo "1712"]
[PlyCount "102"]
[EventDate "2025.04.13"]
[EventType "swiss"]
[EventCountry "ESP"]
[SourceTitle "playchess.com"]
[Source "ChessBase"]
[SourceQuality "1"]
[TimeControl "5400+30"]

1. e4 {[%emt 0:00:30]} e5 {[%emt 0:04:23]} 2. Nf3 {[%emt 0:00:10]} Nc6 {[%emt 0:00:59]} 3. Bc4 {[%emt 0:00:09]} Bc5 {[%emt 0:00:07]} 4. c3 {[%emt 0:00:20]} Nf6 {[%emt 0:00:07]} 5. d3 {[%emt 0:00:08]} d6 {[%emt 0:00:43]} 6. Bg5 {[%emt 0:00:34]} h6 {[%emt 0:00:08]} 7. Be3 {[%emt 0:00:01]} Bxe3 {[%emt 0:02:53]} 8. fxe3 {[%emt 0:00:08]} a6 {[%emt 0:00:51]} 9. O-O {[%emt 0:00:22]} O-O {[%emt 0:00:00]} 10. Nbd2 {[%emt 0:00:37]} Na5 {[%emt 0:00:50]} 11. Qe1 {[%emt 0:04:31]} Nxc4 {[%emt 0:02:35]} 12. Nxc4 {[%emt 0:00:15]} Be6 {[%emt 0:00:11]} 13. Ncd2 {[%emt 0:00:30]} Re8 {[%emt 0:00:40]} 14. d4 {[%emt 0:00:32]} exd4 {[%emt 0:01:03]} 15. exd4 {[%emt 0:00:07]} Bd7 {[%emt 0:00:23]} 16. Rf2 {[%emt 0:04:40]} Nxe4 {[%emt 0:10:08]} 17. Nxe4 {[%emt 0:00:41]} d5 {[%emt 0:00:19]} 18. Re2 {[%emt 0:00:11]} dxe4 {[%emt 0:00:06]} 19. Rxe4 {[%emt 0:00:02]} Rxe4 {[%emt 0:00:08]} 20. Qxe4 {[%emt 0:00:26]} Bc6 {[%emt 0:00:35]} 21. Qd3 {[%emt 0:01:57]} Bxf3 {[%emt 0:03:05]} 22. Qxf3 {[%emt 0:00:27]} c6 {[%emt 0:00:00]} 23. Rf1 {[%emt 0:00:10]} Qe7 {[%emt 0:00:19]} 24. a3 {[%emt 0:06:01]} Re8 {[%emt 0:00:48]} 25. b4 {[%emt 0:00:09]} Qe3+ {[%emt 0:00:10]} 26. Qxe3 {[%emt 0:00:35]} Rxe3 {[%emt 0:00:09]} 27. Rc1 {[%emt 0:00:05]} Re2 {[%emt 0:01:05]} 28. a4 {[%emt 0:00:07]} Kf8 {[%emt 0:00:33]} 29. a5 {[%emt 0:00:57]} Ke7 {[%emt 0:00:25]} 30. Kf1 {[%emt 0:00:29]} Rd2 {[%emt 0:00:40]} 31. Re1+ {[%emt 0:01:21]} Kd7 {[%emt 0:00:45]} 32. Re5 {[%emt 0:00:19]} Rc2 {[%emt 0:00:33]} 33. Rc5 {[%emt 0:00:09]} Kd6 {[%emt 0:01:17]} 34. h4 {[%emt 0:00:12]} g6 {[%emt 0:02:45]} 35. g4 {[%emt 0:06:17]} f6 {[%emt 0:01:43]} 36. g5 {[%emt 0:02:43]} fxg5 {[%emt 0:02:03]} 37. hxg5 {[%emt 0:00:15]} h5 {[%emt 0:00:37]} 38. Kg1 {[%emt 0:00:04]} Re2 {[%emt 0:02:27]} 39. Kh1 {[%emt 0:01:37]} Rf2 {[%emt 0:00:48]} 40. c4 {[%emt 0:03:31]} Rb2 {[%emt 0:03:07]} 41. b5 {[%emt 0:01:45]} axb5 {[%emt 0:00:43]} 42. cxb5 {[%emt 0:00:21]} Rxb5 {[%emt 0:00:05]} 43. Rc4 {[%emt 0:00:56]} Rxa5 {[%emt 0:00:13]} 44. Rb4 {[%emt 0:00:01]} b5 {[%emt 0:00:33]} 45. Rb2 {[%emt 0:00:29]} Ra7 {[%emt 0:00:32]} 46. Rf2 {[%emt 0:00:02]} Re7 {[%emt 0:00:16]} 47. Rc2 {[%emt 0:01:15]} Re4 {[%emt 0:00:43]} 48. Rf2 {[%emt 0:00:15]} Kd5 {[%emt 1:00:57]} 49. Rf6 {[%emt 0:00:02]} Rh4+ {[%emt 0:00:00]} 50. Kg2 {[%emt 0:00:16]} Rg4+ {[%emt 0:00:00]} 51. Kh3 {[%emt 0:00:25]} Rxg5 {[%emt 0:00:00]} 0-1

[Event "17th Memorial Lezcano Montalvo 2025"]
[Site "Gran Canaria"]
[Date "2025.04.20"]
[Round "9.54"]
[White "Almeida Cubas, Mirella"]
[Black "Bernal Zelaya, Pedro Gabriel"]
[Result "1-0"]
[Annotator "NA"]
[ECO "A13"]
[WhiteElo "1824"]
[BlackElo "1538"]
[PlyCount "109"]
[EventDate "2025.04.13"]
[EventType "swiss"]
[EventCountry "ESP"]
[SourceTitle "playchess.com"]
[Source "ChessBase"]
[SourceQuality "1"]
[TimeControl "5400+30"]

1. Nf3 {[%emt 0:00:30]} d5 {[%emt 0:00:30]} 2. c4 {[%emt 0:00:30]} e6 {[%emt 0:00:30]} 3. g3 {[%emt 0:00:00]} Nf6 {[%emt 0:00:00]} 4. b3 {[%emt 0:00:00]} Bd6 {[%emt 0:03:07]} 5. Bb2 {[%emt 0:00:01]} b6 {[%emt 0:00:41]} 6. Bg2 {[%emt 0:00:29]} Nbd7 {[%emt 0:00:58]} 7. O-O {[%emt 0:00:42]} Bb7 {[%emt 0:01:04]} 8. d3 {[%emt 0:00:40]} c5 {[%emt 0:02:17]} 9. cxd5 {[%emt 0:01:35]} exd5 {[%emt 0:01:19]} 10. d4 {[%emt 0:00:22]} O-O {[%emt 0:00:54]} 11. Nbd2 {[%emt 0:04:02]} Re8 {[%emt 0:01:52]} 12. Rc1 {[%emt 0:03:08]} a5 {[%emt 0:08:00]} 13. a4 {[%emt 0:06:24]} Ba6 {[%emt 0:00:44]} 14. Re1 {[%emt 0:01:47]} Rc8 {[%emt 0:02:22]} 15. Rc2 {[%emt 0:03:09]} cxd4 {[%emt 0:09:32]} 16. Nxd4 {[%emt 0:04:36]} Rxc2 {[%emt 0:00:58]} 17. Qxc2 {[%emt 0:00:58]} Nc5 {[%emt 0:21:00]} 18. N2f3 {[%emt 0:02:40]} Ncd7 {[%emt 0:18:22]} 19. Rc1 {[%emt 0:05:49]} Bc5 {[%emt 0:02:13]} 20. Qd1 {[%emt 0:02:56]} Nf8 {[%emt 0:04:35]} 21. Rc2 {[%emt 0:04:40]} Ng6 {[%emt 0:02:06]} 22. Qa1 {[%emt 0:04:06]} Qd7 {[%emt 0:03:56]} 23. Bf1 {[%emt 0:04:47]} Qg4 {[%emt 0:06:15]} 24. e3 {[%emt 0:06:31]} Bxf1 {[%emt 0:00:26]} 25. Qxf1 {[%emt 0:00:16]} Ne4 {[%emt 0:01:09]} 26. Kg2 {[%emt 0:07:58]} Ne5 {[%emt 0:01:08]} 27. Nxe5 {[%emt 0:02:07]} Rxe5 {[%emt 0:00:06]} 28. f3 {[%emt 0:00:39]} Qg6 {[%emt 0:00:44]} 29. fxe4 {[%emt 0:00:45]} Qxe4+ {[%emt 0:00:00]} 30. Qf3 {[%emt 0:00:52]} Qxe3 {[%emt 0:00:00]} 31. Qxe3 {[%emt 0:02:09]} Rxe3 {[%emt 0:00:00]} 32. Re2 {[%emt 0:00:58]} Rxe2+ {[%emt 0:00:06]} 33. Nxe2 {[%emt 0:00:09]} Kf8 {[%emt 0:00:40]} 34. Nf4 {[%emt 0:00:49]} d4 {[%emt 0:00:00]} 35. Kf3 {[%emt 0:30:56]} g5 {[%emt 0:01:07]} 36. Nd3 {[%emt 0:00:00]} f5 {[%emt 0:01:36]} 37. Nxc5 {[%emt 0:00:00]} bxc5 {[%emt 0:00:03]} 38. Ba3 {[%emt 0:00:00]} Kf7 {[%emt 0:01:07]} 39. Bxc5 {[%emt 0:00:00]} Ke6 {[%emt 0:00:04]} 40. Bxd4 {[%emt 0:00:00]} h5 {[%emt 0:02:17]} 41. Bb6 {[%emt 0:00:00]} Ke5 {[%emt 0:00:12]} 42. Bxa5 {[%emt 0:00:00]} g4+ {[%emt 0:00:22]} 43. Ke3 {[%emt 0:00:00]} f4+ {[%emt 0:00:34]} 44. gxf4+ {[%emt 0:00:00]} Kf5 {[%emt 0:00:03]} 45. Bc7 {[%emt 0:00:00]} h4 {[%emt 0:00:12]} 46. Kf2 {[%emt 0:00:00]} Ke4 {[%emt 0:00:25]} 47. a5 {[%emt 0:00:00]} Kd5 {[%emt 0:00:36]} 48. a6 {[%emt 0:00:00]} Kc6 {[%emt 0:00:00]} 49. Bb8 {[%emt 0:00:00]} Kb6 {[%emt 0:00:10]} 50. a7 {[%emt 0:00:00]} Kb7 {[%emt 0:00:11]} 51. f5 {[%emt 0:00:00]} g3+ {[%emt 0:00:29]} 52. hxg3 {[%emt 0:00:00]} h3 {[%emt 0:00:10]} 53. g4 {[%emt 0:00:00]} h2 {[%emt 0:00:09]} 54. Kg2 {[%emt 0:00:00]} h1=B+ {[%emt 0:00:38]} 55. Kxh1 {[%emt 0:00:00]} 1-0

[Event "17th Memorial Lezcano Montalvo 2025"]
[Site "Gran Canaria"]
[Date "2025.04.20"]
[Round "9.55"]
[White "Rossello Padron, Carlos"]
[Black "Mykhyeyev, Serafim"]
[Result "1-0"]
[Annotator "NA"]
[ECO "A01"]
[WhiteElo "1776"]
[BlackElo "1516"]
[PlyCount "74"]
[EventDate "2025.04.13"]
[EventType "swiss"]
[EventCountry "ESP"]
[SourceTitle "playchess.com"]
[Source "ChessBase"]
[SourceQuality "1"]
[TimeControl "5400+30"]

1. b3 {[%emt 0:05:31]} e5 {[%emt 0:00:31]} 2. Bb2 {[%emt 0:00:10]} Nc6 {[%emt 0:00:25]} 3. e3 {[%emt 0:00:12]} d5 {[%emt 0:00:17]} 4. Bb5 {[%emt 0:00:10]} Bd6 {[%emt 0:00:07]} 5. f4 {[%emt 0:00:09]} f6 {[%emt 0:00:13]} 6. fxe5 {[%emt 0:01:23]} fxe5 {[%emt 0:01:04]} 7. Nf3 {[%emt 0:01:13]} Qe7 {[%emt 0:07:58]} 8. Bxc6+ {[%emt 0:00:21]} bxc6 {[%emt 0:05:05]} 9. Nxe5 {[%emt 0:00:09]} Bxe5 {[%emt 0:10:01]} 10. Qh5+ {[%emt 0:00:12]} Kd8 {[%emt 0:06:44]} 11. Qxe5 {[%emt 0:00:16]} Nf6 {[%emt 0:03:55]} 12. O-O {[%emt 0:02:28]} Rf8 {[%emt 0:03:16]} 13. d3 {[%emt 0:02:30]} Bb7 {[%emt 0:12:34]} 14. Qxe7+ {[%emt 0:00:19]} Kxe7 {[%emt 0:03:59]} 15. Ba3+ {[%emt 0:00:09]} Ke6 {[%emt 0:02:35]} 16. Bxf8 {[%emt 0:00:11]} Rxf8 {[%emt 0:00:07]} 17. Nd2 {[%emt 0:00:19]} c5 {[%emt 0:02:47]} 18. e4 {[%emt 0:01:16]} d4 {[%emt 0:00:23]} 19. Nc4 {[%emt 0:00:33]} Re8 {[%emt 0:00:32]} 20. Rf5 {[%emt 0:00:28]} Nd7 {[%emt 0:00:50]} 21. Raf1 {[%emt 0:00:55]} Re7 {[%emt 0:00:44]} 22. Nd2 {[%emt 0:00:45]} g6 {[%emt 0:00:41]} 23. R5f2 {[%emt 0:00:20]} Bc6 {[%emt 0:00:55]} 24. Nf3 {[%emt 0:00:51]} Kd6 {[%emt 0:02:52]} 25. Ng5 {[%emt 0:01:45]} Ne5 {[%emt 0:01:00]} 26. Rf6+ {[%emt 0:03:01]} Kd7 {[%emt 0:00:12]} 27. h3 {[%emt 0:00:56]} a5 {[%emt 0:00:17]} 28. a4 {[%emt 0:00:11]} Bb7 {[%emt 0:00:19]} 29. Nf7 {[%emt 0:00:21]} Nc6 {[%emt 0:00:51]} 30. g4 {[%emt 0:01:07]} Ba8 {[%emt 0:00:17]} 31. h4 {[%emt 0:00:46]} Bb7 {[%emt 0:02:31]} 32. h5 {[%emt 0:00:09]} gxh5 {[%emt 0:00:17]} 33. gxh5 {[%emt 0:00:15]} Ba8 {[%emt 0:00:12]} 34. R1f5 {[%emt 0:00:20]} Bb7 {[%emt 0:00:27]} 35. Rd5+ {[%emt 0:01:05]} Ke8 {[%emt 0:00:24]} 36. Nh6 {[%emt 0:00:54]} Nb4 {[%emt 0:00:19]} 37. Rxc5 {[%emt 0:00:26]} Kd8 {[%emt 0:33:19]} 1-0